[Event "Charlotte Fall IM-D 2023"]
[Site "Charlotte"]
[Date "2023.11.21"]
[Round "9.5"]
[White "Dukic, Zachary"]
[Black "Karthik, Advaith"]
[Result "1-0"]
[ECO "B33"]
[WhiteElo "2233"]
[BlackElo "2156"]
[Annotator "RC"]
[PlyCount "89"]
[EventDate "2023.11.17"]
[EventType "tourn"]
[EventCountry "USA"]
[SourceTitle "playchess.com"]
[Source "ChessBase"]
[SourceQuality "1"]
[TimeControl "5400+30"]

1. e4 {[%emt 0:00:02]} c5 {[%emt 0:12:40]} 2. Nf3 {[%emt 0:00:06]} Nc6 {[%emt 0:00:03]} 3. d4 {[%emt 0:00:06]} cxd4 {[%emt 0:00:04]} 4. Nxd4 {[%emt 0:00:05]} Nf6 {[%emt 0:00:05]} 5. Nc3 {[%emt 0:00:05]} e5 {[%emt 0:00:04]} 6. Ndb5 {[%emt 0:00:06]} d6 {[%emt 0:00:04]} 7. Nd5 {[%emt 0:00:07]} Nxd5 {[%emt 0:00:06]} 8. exd5 {[%emt 0:00:04]} Ne7 {[%emt 0:00:07]} 9. c4 {[%emt 0:00:05]} Nf5 {[%emt 0:00:05]} 10. Bd3 {[%emt 0:00:09]} Be7 {[%emt 0:00:21]} 11. O-O {[%emt 0:00:19]} O-O {[%emt 0:00:36]} 12. a4 {[%emt 0:00:29]} a6 {[%emt 0:04:23]} 13. Nc3 {[%emt 0:00:09]} Bg5 {[%emt 0:03:52]} 14. a5 {[%emt 0:18:39]} Bxc1 {[%emt 0:00:23]} 15. Qxc1 {[%emt 0:00:11]} Nd4 {[%emt 0:00:12]} 16. Qe3 {[%emt 0:01:57]} g5 {[%emt 0:05:37]} 17. h4 {[%emt 0:32:44]} f5 {[%emt 0:05:24]} 18. Qxg5+ {[%emt 0:00:50]} Qxg5 {[%emt 0:00:12]} 19. hxg5 {[%emt 0:00:07]} f4 {[%emt 0:00:12]} 20. f3 {[%emt 0:05:32]} Kh8 {[%emt 0:01:38]} 21. Kf2 {[%emt 0:00:39]} Bf5 {[%emt 0:04:28]} 22. Bxf5 {[%emt 0:01:06]} Nxf5 {[%emt 0:00:02]} 23. Ne4 {[%emt 0:01:54]} Ng3 {[%emt 0:00:51]} 24. Nxg3 {[%emt 0:11:22]} fxg3+ {[%emt 0:00:02]} 25. Ke3 {[%emt 0:00:44]} Rf5 {[%emt 0:00:20]} 26. Ra4 {[%emt 0:00:20]} Rc8 {[%emt 0:00:48]} 27. Rb4 {[%emt 0:01:50]} Rxg5 {[%emt 0:00:29]} 28. Rh1 {[%emt 0:04:00]} h5 {[%emt 0:01:14]} 29. Rh4 {[%emt 0:02:29]} Rc7 {[%emt 0:00:05]} 30. Rb6 {[%emt 0:00:21]} Rd7 {[%emt 0:00:10]} 31. b4 {[%emt 0:00:26]} Kg7 {[%emt 0:00:38]} 32. Ke4 {[%emt 0:00:06]} Rc7 {[%emt 0:01:12]} 33. c5 {[%emt 0:02:12]} dxc5 {[%emt 0:00:13]} 34. d6 {[%emt 0:00:05]} Rd7 {[%emt 0:00:17]} 35. bxc5 {[%emt 0:00:19]} Kf6 {[%emt 0:00:06]} 36. Rb1 {[%emt 0:05:52]} Ke6 {[%emt 0:00:23]} 37. Rbh1 {[%emt 0:00:07]} Rh7 {[%emt 0:00:13]} 38. Rg4 {[%emt 0:00:06]} hxg4 {[%emt 0:01:25]} 39. Rxh7 {[%emt 0:00:07]} gxf3 {[%emt 0:00:03]} 40. Re7+ {[%emt 0:00:01]} Kf6 {[%emt 0:00:10]} 41. Kxf3 {[%emt 0:05:12]} e4+ {[%emt 0:00:53]} 42. Rxe4 {[%emt 0:02:48]} Rxc5 {[%emt 0:00:17]} 43. Rd4 {[%emt 0:00:12]} Rc8 {[%emt 0:01:00]} 44. Kxg3 {[%emt 0:00:20]} Ke5 {[%emt 0:00:07]} 45. Rd3 {[%emt 0:02:05]} 1-0